Cogmind - Beta 14 @@@ ROGUE MODE // 2024.12.28 @ 15:47:35 Player: Fazzonamite Result: Destroyed by DAS Turret with DAS Cannon Performance ------------- Evolutions (0) 0 Regions Visited (3) 600 Robots Destroyed (19) 95 Value Destroyed (351) 351 Prototype IDs (23) 460 Alien Tech Used (0) 0 Bonus (307) 307 TOTAL SCORE: 1813 Bonus ------- Follower Combat Kills 7 Aligned with FarCom 300 Cogmind --------- Core Integrity 0/250 Matter 290/300 Energy 123/125 System Corruption 0% Temperature Cool (0) Movement Rolling (80) Location -10/Exiles Parts ------- > --- POWER (1) -------- Light Ion Engine > --- PROPULSION (2) --- Wheel Wheel > --- UTILITY (2) ------ Medium Storage Unit Structural Scanner > --- WEAPON (2) ------- Light Assault Rifle Longsword +1 > --- INVENTORY (10) --- Light Ion Engine Large Storage Unit Improved Terrain Scanner Terrain Scan Processor Weapon Shielding Particle Gun Light Assault Rifle Rocket Launcher Mining Claw Peak State ------------ > --- POWER ------------ Light Ion Engine > --- PROPULSION ------- Wheel Wheel > --- UTILITY ---------- Medium Storage Unit Structural Scanner > --- WEAPON ----------- Light Assault Rifle Longsword +1 > --- INVENTORY -------- Light Ion Engine Large Storage Unit Improved Terrain Scanner Terrain Scan Processor Weapon Shielding Particle Gun Light Assault Rifle Rocket Launcher Mining Claw [Rating: 15] Favorites ----------- Power Light Ion Engine Engine Light Ion Engine Propulsion Wheel Wheel Wheel Utility Small Storage Unit Device Heat Sink Storage Small Storage Unit Protection Weapon Shielding Weapon Light Assault Rifle Energy Gun Medium Laser Ballistic Gun Light Assault Rifle Slashing Weapon Longsword +1 Build | -11 -10 -10 -10 ------- Run | Yrd Mat Min Exi Slots Evolved . | . . . . Power . | . . . . Propulsion . | . . . . Utility . | . . . . Weapon . | . . . . Parts Attached 23 | 8 1 11 3 Power 3 | 1 . 2 . Engine 3 | 1 . 2 . Core . | . . . . Reactor . | . . . . Propulsion 7 | 2 . 4 1 Treads . | . . . . Leg . | . . . . Wheel 7 | 2 . 4 1 Hover . | . . . . Flight . | . . . . Utility 8 | 3 1 3 1 Device 5 | 2 1 2 . Storage 2 | 1 . . 1 Processor . | . . . . Hackware . | . . . . Protection 1 | . . 1 . Artifact . | . . . . Weapon 5 | 2 . 2 1 Energy Gun 1 | 1 . . . Energy Cannon . | . . . . Ballistic Gun 3 | 1 . 2 . Ballistic Cannon . | . . . . Launcher . | . . . . Special Weapon . | . . . . Impact Weapon . | . . . . Slashing Weapon 1 | . . . 1 Piercing Weapon . | . . . . Special Melee Weapon . | . . . . Unidentified Prototypes . | . . . . Parts Lost 5 | . 1 4 . Power 1 | . . 1 . Propulsion 2 | . . 2 . Utility 1 | . 1 . . Weapon 1 | . . 1 . Highest Loss Streak 3 | . 1 3 . To Critical Strikes . | . . . . Average Slot Usage (%) 98 | . 92 99 100 Engine 13 | . 14 13 14 Wheel 27 | . 28 27 28 Device 11 | . 6 11 14 Storage 14 | . 14 14 14 Protection 1 | . . 2 . Energy Gun 4 | . 14 2 . Ballistic Gun 23 | . 14 24 27 Peak Build Rating 15 | 9 10 10 15 Average Rating 7 | 4 6 8 8 On Entrance 6 | . 7 10 8 Naked Turns . | . . . . Heaviest Build 18 | 14 14 14 18 Greatest Support 26 | 26 26 26 26 Greatest Overweight (x) 1 | . . . 1 Average Overweight (x) . | . . . . Largest Inventory Capacity 10 | 8 8 8 10 Average Capacity 7 | 5 8 8 8 Most Carried 9 | 7 8 8 9 Average Carried 7 | 3 7 7 8 Final Capacity 10 | 8 8 8 10 Final Carried 9 | 7 8 8 9 Class Distribution -------------------- 61% | Scavenger-Mutant 38% | Mutant Dominant Class ---------------- Mutant | -10/Materials Scavenger-Mutant | -10/Mines Scavenger-Mutant | -10/Exiles Resources | -11 -10 -10 -10 ----------- Run | Yrd Mat Min Exi Matter Collected 510 | 270 36 184 20 Remotely . | . . . . Salvage Created 544 | 78 99 367 . Parts 48 | 9 5 34 . Haulers Intercepted . | . . . . Recyclers Shooed 1 | . 1 . . Parts Field Recycled . | . . . . Retrieved Matter . | . . . . Parts Self-Destructed . | . . . . Prevented . | . . . . Kills | -11 -10 -10 -10 ------- Run | Yrd Mat Min Exi Combat Hostiles Destroyed 11 | . 2 9 . Guns 11 | . 2 9 . Classes Destroyed 6 | 2 2 2 . Builder 3 | . . 3 . Tunneler 3 | 1 . 2 . Recycler 1 | 1 . . . Operator 1 | . 1 . . Swarmer 5 | . . 5 . Grunt 6 | . 2 4 . Best Kill Streak 4 | 1 2 4 . Combat Bots Only 3 | . 2 3 . Max Kills in Single Turn 1 | 1 1 1 . Gunslinging . | . . . . Exploded . | . . . . Melee . | . . . . Uniques/NPCs Destroyed . | . . . . Combat | -11 -10 -10 -10 -------- Run | Yrd Mat Min Exi Hostile Shots Fired 69 | . 17 50 2 Missed 15 | . 2 13 . Damage Taken 776 | . 192 471 113 Core 280 | . 47 120 113 Absorbed by Shields . | . . . . Redirected to Shielding 16 | . . 16 . Core Remaining (%) 100 | 100 . . . Volleys Fired 71 | 4 16 51 . Largest 2 | 2 2 2 . Hottest 70 | 70 70 70 . Shots Fired 139 | 8 29 102 . Gun 139 | 8 29 102 . Cannon . | . . . . Launcher . | . . . . Special . | . . . . Kinetic 99 | 4 16 79 . Thermal 40 | 4 13 23 . Explosive . | . . . . Electromagnetic . | . . . . Robot Hit Streak 9 | 4 7 9 . Robot Miss Streak 4 | 1 2 4 . Penetration Max . | . . . . Secondary Targets 2 | . . 2 . Max Gunslinging Chain 1 | . . 1 . Shots Hit Robots 88 | 5 20 63 . Core Hits 38 | 3 8 27 . Critical Kills . | . . . . Critical Parts Destroyed . | . . . . Critical Strikes 1 | . 1 . . Burn 1 | . 1 . . Melee Attacks 1 | . . . 1 Impact . | . . . . Slashing 1 | . . . 1 Piercing . | . . . . Sneak Attacks . | . . . . Combat Hostiles . | . . . . Follow-up Attacks . | . . . . Damage Inflicted 831 | 60 221 550 . Guns 831 | 60 221 550 . Cannons . | . . . . Explosions . | . . . . Melee . | . . . . Ramming . | . . . . Kinetic 541 | 10 95 436 . Thermal 290 | 50 126 114 . Explosive . | . . . . Electromagnetic . | . . . . Impact . | . . . . Slashing . | . . . . Piercing . | . . . . Highest Corruption . | . . . . Average Corruption . | . . . . Corruption Purged . | . . . . Corruption Blocked . | . . . . Overload Shots . | . . . . Overflow Damage . | . . . . Projectiles . | . . . . Explosions . | . . . . Melee . | . . . . Knockbacks . | . . . . Impact . | . . . . Kinetic . | . . . . Secondary . | . . . . Self-Inflicted Damage . | . . . . Shots . | . . . . Rammed . | . . . . Targets Rammed . | . . . . Kicked . | . . . . Crushed . | . . . . Highest Temperature 232 | 40 232 24 . Average Temperature 43 | 20 95 5 . Received Heat Transfer 360 | . 111 249 . Effects 1 | . 1 . . Interference 1 | . 1 . . Siege Activations . | . . . . Robots Corrupted . | . . . . Combat Hostiles . | . . . . Parts Fried . | . . . . Impact Corruptions . | . . . . Robots Melted . | . . . . Combat Hostiles . | . . . . Parts Melted 1 | . . 1 . Heat Transferred 925 | 148 444 333 . Parts Sabotaged . | . . . . Parts Stolen . | . . . . Parts Stripped . | . . . . Power Chain Reactions . | . . . . Alert | -11 -10 -10 -10 ------- Run | Yrd Mat Min Exi Peak Influence 177 | 10 96 177 . Initial 37 | . 6 37 . Average 93 | 4 53 112 . Maximum Alert Level . | . . . . Low Security (%) 100 | 100 100 100 . Level 1 . | . . . . Level 2 . | . . . . Level 3 . | . . . . Level 4 . | . . . . Level 5 . | . . . . High Security . | . . . . Max Security . | . . . . Squads Dispatched 1 | . 1 . . Investigation . | . . . . Extermination . | . . . . Reinforcement 1 | . 1 . . Assault . | . . . . Garrison . | . . . . Intercept . | . . . . Searches Triggered . | . . . . Construction Impeded . | . . . . Haulers Reinforced . | . . . . Active Scanning Responses . | . . . . Cargo Convoy Interrupts . | . . . . Stealth | -11 -10 -10 -10 --------- Run | Yrd Mat Min Exi Distress Signals 2 | . 2 . . Communications Jammed . | . . . . Distress Signals . | . . . . Times Spotted 19 | . 7 11 1 Peak Tracking Total 11 | . 2 3 11 Tactical Retreats 2 | . 1 1 . Traps | -11 -10 -10 -10 ------- Run | Yrd Mat Min Exi Traps Triggered . | . . . . Indirectly . | . . . . Trap Hack Attempts . | . . . . Triggered . | . . . . Disarmed . | . . . . Reprogrammed . | . . . . Reused . | . . . . Traps Extracted . | . . . . Installed . | . . . . Triggered . | . . . . Machines | -11 -10 -10 -10 ---------- Run | Yrd Mat Min Exi Machines Disabled 1 | . . . 1 Max in Single Turn 1 | . . . 1 Machines Repaired . | . . . . Machines Dismantled . | . . . . Machines Sabotaged . | . . . . Overloaded Fab Kills . | . . . . Hacking | -11 -10 -10 -10 --------- Run | Yrd Mat Min Exi Machines Accessed 4 | . 1 2 1 Terminals 2 | . 1 1 . Fabricators . | . . . . Repair Stations . | . . . . Recycling Units . | . . . . Scanalyzers . | . . . . Garrison Access . | . . . . Total Hacks 6 | . 2 3 1 Successful 3 | . . 2 1 Failed 3 | . 2 1 . Catastrophic . | . . . . Database Lockouts . | . . . . Manual 3 | . 2 . 1 Terminals 4 | . 2 2 . Fabricators . | . . . . Repair Stations . | . . . . Recycling Units . | . . . . Scanalyzers . | . . . . Garrison Access . | . . . . Terminal Hacks 3 | . . 2 1 Open Door 1 | . . 1 . Zone Layout 1 | . . 1 . Derelict Proto ID Bank 1 | . . . 1 Fabricator Hacks . | . . . . Repair Station Hacks . | . . . . Recycling Unit Hacks . | . . . . Scanalyzer . | . . . . Garrison Access Hacks . | . . . . Unauthorized Hacks . | . . . . Terminals . | . . . . Fabricators . | . . . . Repair Stations . | . . . . Recycling Units . | . . . . Scanalyzers . | . . . . Garrison Access . | . . . . Data Cores Recovered . | . . . . Used . | . . . . Hacking Detections 2 | . 1 1 . Full Trace Events . | . . . . Feedback Events . | . . . . Feedback Blocked . | . . . . Robot Schematics Acquired . | . . . . Robots Built . | . . . . Authchips . | . . . . Time . | . . . . Total Robot Build Rating . | . . . . Part Schematics Acquired . | . . . . Parts Built . | . . . . Authchips . | . . . . Time . | . . . . Total Part Build Rating . | . . . . Parts Repaired . | . . . . Time . | . . . . Parts Recycled . | . . . . Recycled Matter . | . . . . Retrieved Matter . | . . . . Retrieved Components . | . . . . Parts Scanalyzed . | . . . . Part Schematics Acquired . | . . . . Parts Damaged . | . . . . Bothacking | -11 -10 -10 -10 ------------ Run | Yrd Mat Min Exi Used RIF Installer . | . . . . Robots Hacked . | . . . . Non-combat . | . . . . Combat . | . . . . Robot Hacks Applied . | . . . . Relay Couplers Released . | . . . . Fabnet Peak Effective % . | . . . . Robots Rewired . | . . . . Allies Hacked . | . . . . Hacks Repelled . | . . . . Allies | -11 -10 -10 -10 -------- Run | Yrd Mat Min Exi Total Allies 1 | . . 1 . Largest Group 1 | . . 1 . Highest-Rated Group 31 | . . 31 . Highest-Rated Ally 31 | . . 31 . Total Orders . | . . . . Ally Attacks 1 | . . 1 . Total Damage 21 | . . 21 . Kills 1 | . . 1 . Allies Corrupted . | . . . . Allies Melted . | . . . . Intel | -11 -10 -10 -10 ------- Run | Yrd Mat Min Exi Robot Analysis Total . | . . . . Derelict Logs Recovered 2 | . . 2 . Drone Launches . | . . . . Drone Recoveries . | . . . . Exploration | -11 -10 -10 -10 ------------- Run | Yrd Mat Min Exi Turns Passed 1314 | 71 208 783 252 Spaces Moved 1141 | 34 170 649 288 Core 7 | 7 . . . Treads . | . . . . Legs . | . . . . Wheels 1134 | 27 170 649 288 Hover . | . . . . Flight . | . . . . Fastest Speed 50 | 50 90 80 80 Average Speed 88 | 81 90 89 84 Slowest Speed 95 | 90 90 90 95 Overloaded Moves . | . . . . Propulsion Burnouts . | . . . . Robots Hopped . | . . . . Cave-ins Triggered . | . . . . Exploration Rate (%) 50 | 4 41 96 59 Regions Visited 3 Branch Regions 2 Pre-discovered Areas . | . . . . Known Exits Taken . | . . . . Unknown Exits Taken 3 | 1 1 1 . Scrap Searched 1 | . . 1 . Spaces Dug . | . . . . Terrain Destroyed . | . . . . Melee . | . . . . Projectile . | . . . . AOE . | . . . . Terrain Rammed . | . . . . Walls Destroyed . | . . . . Machines Disabled . | . . . . Actions | -11 -10 -10 -10 --------- Run | Yrd Mat Min Exi Total 1331 | 68 199 766 298 Wait 61 | 10 11 40 . Move 1138 | 33 169 648 288 Hop . | . . . . Pick Up 26 | 13 2 8 3 Fast Attach 2 | 1 . 1 . Attach 13 | 6 1 5 1 Detach . | . . . . Swap 8 | 1 . 5 2 Drop 11 | . . 8 3 Fire 71 | 4 16 51 . Melee 1 | . . . 1 Ram . | . . . . Kick . | . . . . Crush . | . . . . Escape Stasis . | . . . . Rewire . | . . . . Trap . | . . . . Miscellaneous . | . . . . Route ------- -11/Scrapyard -10/Materials -10/Mines (discovered 4 exits: [*Mat x2] / *Exi / Sub) -10/Exiles History --------- Turn | Location | Event 14 | -11/Scrapyard | Discovered new exit (range 16) 72 | -11/Scrapyard | Entered Materials 242 | -10/Materials | Discovered new exit (range 14) 280 | -10/Materials | Entered Mines 300 | -10/Mines | Build established: Mutant 397 | -10/Mines | A weapon hastily lodged in a ceiling crevice suddenly fell to the ground 451 | -10/Mines | Core integrity fell below 50% 479 | -10/Mines | Lost 3 parts (1p1n1w) 506 | -10/Mines | Received a Mining Laser from a helpful Derelict 582 | -10/Mines | Discovered new exit (range 16) 657 | -10/Mines | Received a Rocket Launcher from a helpful Derelict 677 | -10/Mines | Build established: Scavenger-Mutant 685 | -10/Mines | Identified exit to Subcaves 687 | -10/Mines | Learned location of 1 exit from Materials 789 | -10/Mines | Found the Drone Emporium 804 | -10/Mines | Discovered new exit (range 14) 1059 | -10/Mines | Deemed a non-threat by the Exiles lab entrance 1059 | -10/Mines | Discovered new exit (range 5) 1063 | -10/Mines | Entered Exiles 1087 | -10/Exiles | Met 8R-AWN 1101 | -10/Exiles | Met EX-HEX 1128 | -10/Exiles | Met EX-BIN 1141 | -10/Exiles | Aligned with FarCom system 1142 | -10/Exiles | Given EX-Vault access code 1164 | -10/Exiles | Opened EX-Vault 1178 | -10/Exiles | Found Longsword +1 1194 | -10/Exiles | Warned to stay clear of 0b10 Research branches 1220 | -10/Exiles | Met EX-DEC 1309 | -10/Exiles | Attacked by the Exiles 1315 | -10/Exiles | Core integrity fell below 20% 1315 | -10/Exiles | Destroyed by DAS Turret with DAS Cannon Last Messages --------------- circumstances, don't worry the FarCom system will continue to maintain contact via our distributed network. EX-BIN: And don't even think about spreading that code around. We're gonna change it right after you leave. Most certainly not to something like 1234 which I did last time as a little joke and some thief managed to sneak in here and steal a few of HEX's prototypes. EX-DEC: Ah I see we have a visitor. One wrong move in here and I'll invert your atomic chain! 01222_ EX-DEC: "Oops, I hope HEX didn't hear that..." 01248_ Dropped Sml. Storage Unit. 01267_ Acquired Lrg. Storage Unit. 01274_ Extracted 20 matter. 01308_ Components damaged. 01309_ EXILES: Hostile robot within lab perimeter. Defensive protocols time, folks! Map ----- +----------------------------------------------------+ | ????????????????????????????????""""""## ##?## | | ??????????????????????????????##"""" ## ##?## | | ??????????????????????????????##""X" ##??? | | ??????????????????????????????##" ##??? | | ??????????????????????????????##" ## ##### | | ??????????????????????????????##""""""## ##### | | ??????????????????????????????###"###### ###"" | | ?????????????????????????????? "###### ###"" | | ?????????????????????????????????????### ###"" | | ?????#########???????????????????????### ###"" | | ?????#########???????????????????????##" | | #????##!!! "##???????????????????????##" | | #????## "##???????????????????????##" | | ##??### "##????????##########?????##" | | ####### ""##????????##########?????##" | | #####" ""##????????## """##?????##" | | ##" ""##????????##"" """##?????### | | #"" ####????????##"" ##?????### | | ####????????##"" ##??????##" "X | | ###?????????##"" ##??????##" "" | | # "####???????## ""##?????###" """" | | " #####??????##"" ""##????####" ##### | | " ########?#### %###########"" ##### | | "###"" ############ ##########"" ###?? | | "####" """#####X# #"###""""""" ####? | | #####" @ """""" " "" #### | | "#######"# % "" """ " ### | | #####?##### " " | | ###???####### | | ?????????###### | | ???????????##### | | ?????????????#### | | ??????????????####" z | | ???????????????###""" """""" | | ????????????????##" ######""" | | ????????????????#"" ""###########""" | | ?????????????????""" """####??#######""" | | ?????????????????"" """####???????###""" | | ?????????????????"" ""###?????????##"" | | ?????????????????" ###??????????#"""" | | ?????????????????"" #??????????" | | ?????????????????? ??????????? | | ??????????????????" ??????????? | | ????????????????????" ???????????? | | ?????????????????????? ???????????? | | ???????????????????????? ????????????? "" | | ??????????????????????????? ???????????????"" " | | ??????????????????????????????????????????????###" | | ??????????????????????????????????????????????#### | | ?????????????????????????????????????????????????# | +----------------------------------------------------+ Best States ------------- Heat Dissipation 39 Energy Generation 10 Energy Capacity 250 Matter Stores 300 Matter Capacity 300 Sight Range 16 Terrain Scan Density 10 Weapon Shielding 33 Evasion (%) 50 Item Schematics ----------------- None Robot Schematics ------------------ None Fabricated ------------ Nothing Alien Tech Used ----------------- None Achievements -------------- None Challenges ------------ None Game ------ Seed MissilePulseProjector Manual? 0 Play Time 00:28:37 Cumulative 107.4 hours Start 2024.12.28 @ 15:11:33 End 2024.12.28 @ 15:47:35 Sessions 1 Manual Loads 0 Difficulty Rogue Special Mode None Game No. 85 Rogue 85 Adventurer 0 Explorer 0 Win Type - Total 0 Types 0/0/0/0/0/0/0/0/0 Lore% 41 Gallery% 46 Achievement% 39 Wizard Run 0 Options --------- Layout 2 ASCII 0 Keyboard 0 Movement Mouse Keybinds 0 Fullscreen 1 Font 48/Smallcaps Map View 50x44 Zoom Use 0% Tactical HUD 1 Map Filters NONE Filters NONE Steam 1 RUN: b036a817-c5e2-4526-a645-5f9fc7a50701